bitfinex-derivatives/quotes_ETHF0:USTF0_20251007
["timestamp","ask_amount","ask_price","bid_price","bid_amount"]
[1759841159242,0.3306,4710.8,4710.7,0.219599]
[1759841159839,0.759,4710.8,4710.7,0.219599]
[1759841160246,0.1199,4711.5,4710.7,0.219599]
[1759841160453,0.1199,4711.5,4710.9,0.38182]
[1759841160454,0.4505,4711.0,4710.9,0.38182]
[1759841160648,0.4505,4711.0,4710.9,3.58962]
[1759841160845,0.4505,4711.0,4710.9,8.58962]
[1759841161444,0.4505,4711.0,4710.9,3.58962]
[1759841161644,0.4505,4711.0,4710.9,3.80762]
[1759841162253,0.4505,4711.0,4710.9,0.218]
[1759841163549,0.4505,4711.0,4710.9,3.4258]
[1759841165755,0.4505,4711.0,4710.9,8.4258]
[1759841167645,0.3024,4711.9,4711.4,0.95445]
[1759841167853,0.1199,4712.0,4711.8,3.58955]
[1759841168055,0.1199,4712.0,4711.9,0.218]
[1759841168449,0.1199,4712.0,4711.9,41.018]
[1759841168750,0.1199,4712.0,4711.9,46.018]
[1759841168958,0.3024,4712.3,4712.2,0.38172]
[1759841169155,0.3024,4712.3,4712.2,0.59972]
[1759841170655,0.4223,4712.5,4712.4,0.3817]
[1759841170957,0.00261372,4712.8,4712.7,0.38167]
[1759841171157,0.30501372,4712.8,4712.7,0.59967]
[1759841176160,0.30501372,4712.8,4712.7,0.38167]
[1759841176355,0.30501372,4712.8,4712.7,0.59867]
[1759841176866,0.50691372,4712.8,4712.7,0.38167]
[1759841177159,0.72301372,4712.8,4712.7,0.38167]
[1759841177361,0.72301372,4712.8,4712.7,0.59867]
[1759841177661,0.50691372,4712.8,4712.7,0.59867]
[1759841178773,0.30501372,4712.8,4712.7,0.59867]
[1759841180463,0.00261372,4712.8,4712.7,0.59867]
[1759841181568,0.30541372,4712.8,4712.7,0.59867]
[1759841181864,0.30541372,4712.8,4712.7,0.38167]
[1759841182057,0.30541372,4712.8,4712.7,0.59867]
[1759841183154,0.50881372,4712.8,4712.7,0.38167]
[1759841183353,0.50881372,4712.8,4712.7,0.59867]
[1759841183766,0.72771372,4712.8,4712.7,0.38167]
[1759841183964,0.72771372,4712.8,4712.7,0.59867]
[1759841184166,0.1212,4712.5,4712.4,3.5895]
[1759841184466,0.8463,4712.5,4712.4,3.8065]
[1759841185169,0.8463,4712.5,4712.4,3.5895]
[1759841185361,0.8463,4712.5,4712.4,3.8065]
[1759841185667,0.30541372,4712.8,4712.7,0.38167]
[1759841185860,0.30541372,4712.8,4712.7,0.59867]
[1759841186058,0.50881372,4712.8,4712.7,0.59867]
[1759841186566,0.30541372,4712.8,4712.7,0.59867]
[1759841186767,0.30541372,4712.8,4712.7,0.38167]
[1759841187169,0.30541372,4712.8,4712.7,0.59867]
[1759841189269,0.30541372,4712.8,4712.7,0.38167]
[1759841189574,0.30541372,4712.8,4712.7,0.59867]
[1759841190473,0.00261372,4712.8,4712.7,0.59867]
[1759841190866,0.30541372,4712.8,4712.7,0.59867]
[1759841191065,0.72771372,4712.8,4712.7,0.38167]
[1759841191360,0.8463,4712.5,4712.4,3.5895]
[1759841191565,0.8463,4712.5,4712.4,3.8065]
[1759841191868,0.8463,4712.5,4712.4,3.4248]
[1759841192371,0.8463,4712.5,4712.4,3.2078]
[1759841192572,0.8463,4712.5,4712.4,3.4248]
[1759841193464,0.8463,4712.5,4712.4,3.2078]
[1759841193867,0.8463,4712.5,4712.4,3.4248]
[1759841194475,0.8463,4712.5,4712.4,3.2078]
[1759841194765,0.8463,4712.5,4712.3,0.3817]
[1759841194766,0.3817,4712.4,4711.9,3.2078]
[1759841194966,0.8457,4712.0,4711.9,3.2078]
[1759841195173,0.8457,4712.0,4711.9,3.4248]
[1759841197666,0.8457,4711.5,4711.4,3.58958]
[1759841197870,0.8457,4711.5,4711.4,3.2078]
[1759841198168,1.22747,4711.5,4711.4,3.4248]
[1759841198369,0.8457,4711.5,4711.4,3.4248]
[1759841201068,0.8457,4711.5,4711.4,3.2078]
[1759841201271,0.8457,4711.5,4711.4,3.4238]
[1759841201966,0.4292,4711.5,4711.4,3.4238]
[1759841203974,0.8433,4711.5,4711.4,3.4238]
[1759841204568,0.1216,4711.5,4711.4,3.4238]
[1759841204878,0.303,4711.9,4711.8,0.38175]
[1759841205065,0.303,4711.9,4711.8,0.59775]
[1759841207077,0.5018,4711.9,4711.8,0.59775]
[1759841207279,0.7171,4711.9,4711.8,0.59775]
[1759841207679,0.303,4711.9,4711.8,0.59775]
[1759841207879,0.5018,4711.9,4711.8,0.59775]
[1759841208282,0.7171,4711.9,4711.8,0.59775]
[1759841208478,0.631,4711.5,4711.4,3.58958]
[1759841208673,0.4322,4711.5,4711.4,3.80558]
[1759841208869,0.4322,4711.5,4711.4,3.58958]
[1759841209073,0.4322,4711.5,4711.4,3.80558]
[1759841209477,0.1292,4711.5,4711.4,3.80558]
[1759841210976,0.4322,4711.5,4711.4,3.58958]
[1759841211179,0.4322,4711.5,4711.4,3.80558]
[1759841211979,0.4322,4711.5,4711.4,3.58958]
[1759841212179,0.4322,4711.5,4711.4,3.80558]
[1759841212981,0.4322,4711.5,4711.4,3.58958]
[1759841213281,0.631,4711.5,4711.4,3.58958]
[1759841213475,0.631,4711.5,4711.4,3.80558]
[1759841214074,0.631,4711.5,4711.4,3.58958]
[1759841214276,0.631,4711.5,4711.4,3.80558]
[1759841214578,0.8463,4711.5,4711.4,3.58958]
[1759841214882,0.4322,4711.5,4711.4,3.58958]
[1759841215286,0.4322,4711.5,4711.4,3.80558]
[1759841216178,0.4322,4711.5,4711.4,3.58958]
[1759841216379,0.4322,4711.5,4711.4,3.80558]
[1759841216776,0.00261372,4712.8,4711.4,8.4238]
[1759841216980,0.00261372,4712.8,4712.6,3.58948]
[1759841216981,0.303,4712.7,4712.6,3.58948]
[1759841217180,0.303,4712.7,4712.6,3.80548]
[1759841217382,3.72e-06,4712.8,4712.6,41.90548]
[1759841217684,0.4322,4713.5,4713.4,0.38162]
[1759841217886,0.4322,4713.5,4713.4,3.80542]
[1759841218685,0.43454962,4713.5,4713.4,3.80542]
[1759841219586,0.84864962,4713.5,4713.4,3.80542]
[1759841219992,0.43454962,4713.5,4713.4,3.80542]
[1759841220475,0.303,4713.9,4713.8,0.38159]
[1759841220678,0.4322,4714.0,4713.8,0.59759]
[1759841220884,0.4322,4714.0,4713.9,3.2078]
[1759841221082,0.1292,4714.0,4713.9,3.2078]
[1759841221485,0.13190008,4714.0,4713.9,3.2078]
[1759841221687,0.00270008,4714.0,4713.9,3.2078]
[1759841222285,0.1292,4714.5,4714.3,0.38155]
[1759841222477,0.1292,4714.5,4714.4,3.4238]
[1759841222677,0.303,4714.8,4714.7,0.38151]
[1759841222877,0.1292,4715.5,4714.9,0.3815]
[1759841223077,0.4322,4715.0,4714.9,3.8053]
[1759841223385,0.00265612,4715.0,4714.9,3.80760983]
[1759841223590,0.00265612,4715.0,4714.9,44.60760983]
[1759841223881,0.13185612,4715.0,4714.9,44.60760983]
[1759841224086,0.1292,4716.0,4714.9,77.70160983]
[1759841224283,0.1292,4716.0,4715.9,3.2078]
[1759841224284,0.4322,4716.0,4715.9,3.2078]
[1759841224479,0.4322,4716.0,4715.9,3.4238]
[1759841224689,0.4322,4716.0,4715.9,3.2078]
[1759841224989,0.3479,4716.0,4715.9,3.4238]
[1759841225189,0.13178452,4716.0,4715.9,3.4238]
[1759841225380,0.45398452,4716.0,4715.9,3.4238]
[1759841226593,0.13178452,4716.0,4715.9,3.4238]
[1759841227594,0.45398452,4716.0,4715.9,3.4238]
[1759841229790,0.1292,4717.0,4716.0,0.95352]
[1759841229995,0.3222,4716.9,4716.8,3.58914]
[1759841230291,0.3222,4716.9,4716.8,44.60514]
[1759841230898,0.32397819,4716.9,4716.8,3.80514]
[1759841232694,0.75687819,4716.9,4716.8,3.2078]
[1759841233200,0.7551,4716.4,4716.3,3.2078]
[1759841233401,0.7551,4716.4,4716.3,3.4238]
[1759841233597,0.7551,4716.4,4716.3,3.2078]
[1759841233803,0.1272,4716.0,4715.7,3.2078]
[1759841234101,0.5409,4715.8,4715.7,3.2078]
[1759841234296,0.5364,4715.3,4715.2,3.2078]
[1759841234496,0.3222,4715.3,4715.2,3.4238]
[1759841234706,0.3222,4715.3,4715.2,3.2078]
[1759841235296,0.3222,4715.3,4715.2,3.4238]
[1759841236505,0.3222,4715.3,4715.2,3.2078]
[1759841236699,0.3222,4715.3,4715.2,3.4238]
[1759841239396,0.1272,4715.5,4715.3,0.38146]
[1759841239601,0.4494,4716.0,4715.9,0.38142]
[1759841239802,0.4494,4716.0,4715.9,3.80522]
[1759841240503,0.1272,4716.0,4715.9,3.80522]
[1759841241405,0.1272,4716.5,4716.3,0.38138]
[1759841241704,0.1272,4717.5,4717.3,0.3813]
[1759841241908,0.1272,4718.0,4717.7,0.38127]
[1759841242110,0.3442,4717.9,4717.8,0.216]
[1759841242304,0.022,4717.9,4717.8,0.216]
[1759841242503,0.022,4717.9,4717.7,0.38127]
[1759841242504,0.3442,4717.9,4717.7,0.38127]
[1759841242704,0.4494,4717.5,4717.4,3.58909]
[1759841242910,0.4494,4717.5,4717.4,3.2078]
[1759841243108,0.4494,4717.5,4717.4,3.4238]
[1759841243908,0.1272,4717.5,4717.4,3.4238]
[1759841244301,0.4494,4717.5,4717.4,3.2078]
[1759841244503,0.4494,4717.5,4717.4,3.4238]
[1759841246313,0.4494,4717.5,4717.4,3.2078]
[1759841246608,0.4494,4717.5,4717.4,3.4238]
[1759841246805,0.4494,4717.5,4717.4,3.80509]
[1759841248511,0.1272,4717.5,4717.4,3.80509]
[1759841249309,0.34576899,4717.9,4717.5,0.38129]
[1759841249512,0.34576899,4717.9,4717.8,0.38126]
[1759841249708,0.34576899,4717.9,4717.8,0.59726]
[1759841250713,0.4494,4717.5,4717.4,3.2078]
[1759841250913,0.4494,4717.5,4717.4,3.80509]
[1759841251110,0.34576899,4717.9,4717.8,0.38126]
[1759841251311,0.02356899,4717.9,4717.8,0.59726]
[1759841251609,0.34576899,4717.9,4717.8,0.59726]
[1759841252912,0.4494,4718.5,4718.4,0.38121]
[1759841253119,0.4494,4718.5,4718.4,3.80501]
[1759841253614,0.93422116,4718.5,4718.4,3.80501]
[1759841253815,0.1272,4718.5,4718.4,3.80501]
[1759841254014,0.12928331,4718.5,4718.4,3.80671548]
[1759841254615,0.43878331,4718.5,4718.4,3.80671548]
[1759841256410,3.2078,4719.4,4718.5,0.95302]
[1759841256714,0.1256,4719.5,4719.4,0.38113]
[1759841256914,0.1256,4719.5,4719.3,3.2078]
[1759841256915,0.1256,4719.5,4719.3,44.0078]
[1759841257216,0.4351,4719.5,4719.4,0.216]
[1759841257520,0.43773843,4719.5,4719.4,0.216]
[1759841258206,0.3165,4719.4,4719.3,3.58894]
[1759841258414,0.3165,4719.4,4719.3,3.80494]
[1759841259912,0.12823843,4719.5,4719.3,3.80494]
[1759841260616,0.3165,4719.4,4719.3,3.80494]
[1759841262212,0.3165,4719.4,4719.3,3.58894]
[1759841262419,0.3165,4719.4,4719.3,3.4238]
[1759841263019,0.3165,4719.4,4719.3,3.2078]
[1759841263221,0.3165,4719.4,4719.3,3.4238]
[1759841264417,5.3165,4719.4,4719.3,3.4238]
[1759841264617,5.3165,4719.4,4719.3,0.216]
[1759841264815,0.4179,4718.9,4718.8,3.2078]
[1759841265021,0.7344,4718.9,4718.8,3.4238]
[1759841266223,0.3165,4718.9,4718.8,3.4238]
[1759841266614,0.5299,4718.9,4718.8,3.2078]
[1759841266820,0.7344,4718.9,4718.8,3.4228]
[1759841267219,0.5299,4718.9,4718.8,3.4228]
[1759841267521,0.3165,4718.9,4718.8,3.4228]
[1759841268317,0.7344,4718.9,4718.8,3.4228]
[1759841268518,0.3165,4718.9,4718.8,3.4228]
[1759841269519,0.7344,4718.9,4718.8,3.4228]
[1759841270022,0.5299,4718.9,4718.8,3.4228]
[1759841270225,1.21864598,4718.9,4718.8,3.4228]
[1759841270717,1.21864598,4718.9,4718.8,3.2078]
[1759841270919,0.4424,4718.0,4717.9,3.58905]
[1759841271118,0.4424,4718.0,4717.9,3.80405]
[1759841271320,0.8603,4718.0,4717.9,3.2078]
[1759841271514,0.4424,4718.0,4717.9,3.4228]
[1759841271821,0.4424,4718.0,4717.9,44.22446297]
[1759841272729,0.4424,4718.0,4717.9,3.42446297]
[1759841274117,0.8603,4718.0,4717.9,0.00166297]
[1759841274317,0.8603,4718.0,4717.9,0.21666297]
[1759841274924,1.34509167,4718.0,4717.9,0.21666297]
[1759841275126,0.8603,4718.0,4717.9,0.21666297]
[1759841275826,0.6558,4718.0,4717.9,0.21666297]
[1759841277229,0.8603,4718.0,4717.9,0.21666297]
[1759841278225,0.8603,4718.0,4717.9,0.00166297]
[1759841278420,0.8603,4718.0,4717.9,0.21666297]
[1759841281134,0.8603,4718.0,4716.3,3.2078]
[1759841281135,0.2134,4716.4,4716.3,3.2078]
[1759841281335,0.7344,4716.4,4716.3,0.38138]
[1759841281638,0.8603,4716.0,4715.9,0.38142]
[1759841281829,0.6558,4716.0,4715.9,0.59642]
[1759841282231,0.86185867,4716.0,4715.9,0.2177236]
[1759841283132,0.44395867,4716.0,4715.9,3.4255236]
[1759841284635,0.1259,4716.5,4716.4,0.38138]
[1759841284938,0.1259,4717.0,4716.9,0.38133]
[1759841285238,3.2078,4717.3,4717.2,0.38131]
[1759841285438,3.2078,4717.3,4717.2,0.59631]
[1759841285630,3.2094239,4717.3,4717.2,0.59631]
[1759841286336,3.4215239,4717.3,4717.0,0.38132]
[1759841286535,3.6339239,4717.3,4717.1,0.59631]
[1759841286731,3.6339239,4717.3,4717.2,0.215]
[1759841287136,0.7531239,4717.3,4717.2,0.215]
[1759841288143,0.1224,4716.5,4716.4,3.2078]
[1759841288440,0.4494,4716.5,4716.4,3.80418]
[1759841289038,0.6615,4716.5,4716.4,3.80418]
[1759841289237,0.4494,4716.5,4716.4,3.80418]
[1759841290839,0.8739,4716.5,4716.3,0.38138]
[1759841291046,0.8739,4716.5,4715.9,3.5919436]
[1759841291047,0.6615,4716.0,4715.9,3.5919436]
[1759841291245,0.4494,4716.0,4715.9,3.8069436]
[1759841292141,0.6615,4716.0,4715.9,3.4255236]
[1759841292340,0.8739,4716.0,4715.9,3.4255236]
[1759841293137,0.4494,4716.0,4715.9,3.4255236]
[1759841293339,0.8739,4716.0,4715.9,0.2177236]
[1759841294250,5.8739,4716.0,4715.9,0.2177236]
[1759841299060,9.0817,4716.0,4715.9,0.2177236]
[1759841299550,6.77839559,4716.0,4715.9,0.2177236]
[1759841300255,6.35389559,4716.0,4715.9,0.2177236]
[1759841300457,0.4494,4716.0,4715.9,0.2177236]
[1759841302051,0.4494,4716.0,4715.9,5.2177236]
[1759841302457,0.6615,4716.0,4715.9,0.2177236]
[1759841302946,0.1224,4716.0,4715.9,5.2177236]
[1759841303154,0.1224,4716.0,4715.9,0.2177236]
[1759841303355,0.4494,4716.0,4715.9,0.2177236]
[1759841304254,0.4494,4716.5,4715.9,0.2177236]
[1759841304557,0.327,4716.4,4716.3,0.38138]
[1759841304756,0.327,4716.4,4716.3,0.59638]
[1759841305149,0.327,4716.4,4716.3,0.215]
[1759841307351,0.1224,4716.5,4716.4,0.38138]
[1759841307547,0.327,4716.8,4716.7,0.38135]
[1759841307748,0.0016239,4717.3,4717.2,0.38131]
[1759841307953,0.0016239,4717.3,4717.2,0.59631]
[1759841308854,0.4245,4716.9,4716.8,0.38134]
[1759841309055,0.4245,4716.9,4716.8,0.59634]
[1759841309658,0.0016239,4717.3,4717.1,0.38132]
[1759841309857,0.0016239,4717.3,4717.2,0.215]
[1759841316461,0.7485,4717.2,4717.0,0.38133]
[1759841316661,0.7485,4717.2,4717.1,0.215]
[1759841316955,0.318,4717.1,4716.4,3.2078]
[1759841317156,3.5907339,4717.3,4715.9,1.52922064]
[1759841317157,0.3341,4716.0,4715.9,1.52922064]
[1759841317355,0.8717,4716.0,4715.9,0.2177236]
[1759841317965,0.8717,4716.0,4715.9,0.0027236]
[1759841318159,0.8717,4716.0,4715.9,0.2177236]
[1759841318955,0.6521,4716.0,4715.9,0.2177236]
[1759841319764,0.4412,4716.0,4715.9,0.2177236]
[1759841320159,0.6517,4716.0,4715.9,0.2177236]
[1759841321757,5.86,4716.0,4715.9,0.0027236]
[1759841322363,0.86,4716.0,4715.9,0.0027236]
[1759841323361,5.86,4716.0,4715.9,0.0027236]
[1759841323566,5.86,4716.0,4714.8,44.0078]
[1759841323567,0.4188,4714.6,4714.3,3.2078]
[1759841323765,0.7296,4714.6,4714.5,0.38153]
[1759841323965,0.5213,4714.6,4714.5,0.38153]
[1759841324162,0.3108,4714.6,4714.5,0.38153]
[1759841324463,0.7296,4714.6,4714.5,0.59885699]
[1759841325062,0.7296,4714.6,4714.5,0.21732699]
[1759841325965,0.7296,4714.6,4714.5,0.00232699]
[1759841326266,3.9374,4714.6,4714.5,0.21732699]
[1759841326464,6.75574144,4714.6,4714.5,0.00232699]
[1759841326866,3.9374,4714.6,4714.5,0.00232699]
[1759841328263,3.5186,4714.6,4714.5,0.00232699]
[1759841328466,0.3108,4714.9,4714.8,0.3815]
[1759841328661,0.7296,4714.9,4714.8,0.5955]
[1759841328970,0.3108,4714.9,4714.8,0.5955]
[1759841329361,0.5213,4714.9,4714.8,0.5955]
[1759841329864,0.3108,4714.9,4714.8,0.5955]
[1759841332969,0.3108,4715.5,4715.3,0.38146]
[1759841333173,0.3108,4715.8,4715.7,0.38143]
[1759841334473,0.1304,4715.5,4715.3,3.2078]
[1759841334672,0.1304,4715.5,4714.5,40.80232699]
[1759841334673,0.1304,4715.5,4715.4,0.215]
[1759841334872,0.4412,4715.5,4715.4,0.215]
[1759841335272,0.6517,4715.5,4715.4,0.215]
[1759841335477,0.86,4715.5,4715.4,0.215]
[1759841335666,0.4412,4715.5,4715.4,0.215]
[1759841337269,3.2078,4716.3,4715.4,0.215]
[1759841337475,3.2078,4716.3,4715.9,0.38142]
[1759841337679,3.2078,4716.3,4715.9,0.59642]
[1759841337876,0.434,4716.0,4715.9,0.59642]
[1759841338077,0.6445,4716.0,4715.9,0.59642]
[1759841340083,0.434,4716.0,4715.9,0.59642]
[1759841340276,0.6445,4716.0,4715.9,0.59642]
[1759841340976,0.434,4716.0,4715.9,0.59642]
[1759841341176,0.4412,4716.5,4716.4,0.38138]
[1759841341377,3.5186,4716.8,4716.7,0.38135]
[1759841341779,3.5186,4716.8,4716.4,0.214]
[1759841341780,0.3108,4716.7,4716.6,0.38135]
[1759841341976,3.2078,4716.8,4716.6,0.38135]
[1759841342380,0.3108,4717.1,4716.9,0.38133]
[1759841342680,0.0016239,4717.3,4717.1,0.38132]
[1759841343680,0.3108,4718.2,4717.2,5.0]
[1759841343884,0.2105,4718.2,4717.4,3.2078]
[1759841344184,0.6517,4718.0,4717.9,0.38125]
[1759841344377,0.6517,4718.0,4717.9,0.59525]
[1759841344777,0.65437416,4718.0,4717.9,0.59676405]
[1759841345180,0.00267416,4718.0,4717.9,0.59676405]
[1759841345780,0.45577416,4718.0,4717.9,0.59676405]
[1759841346788,0.87147416,4718.0,4717.9,0.21551405]
[1759841346989,0.87147416,4718.0,4717.9,0.00151405]
[1759841347178,0.87147416,4718.0,4717.9,0.59676405]
[1759841347677,0.87147416,4718.0,4717.9,0.21551405]
[1759841347879,0.00267416,4718.0,4717.9,3.42331405]
[1759841348075,0.00267416,4718.0,4717.9,0.21551405]
[1759841349384,3.2078,4719.1,4719.0,0.38117]
[1759841349686,0.3811,4719.9,4719.4,0.38113]
[1759841349687,0.46,4719.5,4719.4,0.38113]
[1759841349887,0.3296,4719.5,4719.4,0.59513]
[1759841350390,0.33133039,4719.5,4719.4,0.59513]
[1759841350888,0.45483039,4719.5,4719.4,0.59513]
[1759841351688,0.66763039,4719.5,4719.4,0.59513]
[1759841351889,0.87053039,4719.5,4719.4,0.59513]
[1759841352090,0.45483039,4719.5,4719.4,0.59513]
[1759841353392,0.66763039,4719.5,4719.4,0.59513]
[1759841353592,0.66763039,4719.5,4719.4,0.38113]
[1759841353793,0.45483039,4719.5,4719.4,0.59513]
[1759841354588,0.00173039,4719.5,4719.4,0.59513]
[1759841355496,0.87053039,4719.5,4719.4,0.59513]
[1759841355792,0.2128,4719.1,4719.0,0.38117]
[1759841356089,0.4157,4719.1,4719.0,0.38117]
[1759841356294,0.3296,4719.1,4719.0,0.38117]
[1759841356697,0.3296,4719.1,4719.0,0.59517]
[1759841358097,0.3296,4719.1,4719.0,0.38117]
[1759841358298,0.3296,4719.4,4719.3,0.38114]
[1759841358794,0.71074,4719.4,4719.1,0.38116]
[1759841358990,0.3296,4719.3,4719.2,0.38115]
[1759841360295,3.66263039,4719.5,4719.4,0.38113]
[1759841360798,3.20953039,4719.5,4719.4,0.38113]
[1759841361000,0.00173039,4719.5,4719.4,0.38113]
[1759841363394,0.33803039,4719.5,4719.4,0.214]
[1759841363697,0.12523039,4719.5,4719.4,0.214]
[1759841363895,0.00173039,4719.5,4719.4,0.214]
[1759841365395,0.00173039,4719.5,4719.4,5.214]
[1759841365597,0.1235,4720.5,4719.4,5.214]
[1759841365900,0.4531,4720.5,4720.4,0.38105]
[1759841366093,0.4531,4720.5,4720.4,0.59505]
[1759841366796,0.45527199,4720.5,4720.4,0.59505]
[1759841367702,0.00217199,4720.5,4720.4,0.59505]
[1759841368099,0.66807199,4720.5,4720.4,0.59505]
[1759841368404,0.7453,4720.4,4720.3,0.38106]
[1759841368601,0.7453,4720.4,4720.3,0.59506]
[1759841368800,0.5424,4720.4,4720.3,0.59506]
[1759841368996,0.3296,4720.4,4720.3,0.59506]
[1759841369195,0.2128,4719.8,4719.7,3.2078]
[1759841369396,0.3296,4720.2,4719.7,4.37456]
[1759841369703,0.33847199,4720.5,4720.4,0.38105]
[1759841369903,0.12567199,4720.5,4720.4,0.59505]
[1759841370204,0.45527199,4720.5,4720.4,0.59505]
[1759841370592,0.66807199,4720.5,4720.4,0.38105]
[1759841370801,0.3296,4719.9,4719.8,41.1811]
[1759841371005,0.3296,4719.9,4719.8,41.3951]
[1759841371400,0.3296,4720.3,4719.8,0.5951]
[1759841371601,0.3296,4720.4,4720.3,0.38106]
[1759841371801,0.3296,4720.4,4720.3,0.59506]
[1759841372396,0.00217199,4720.5,4720.3,0.59506]
[1759841373403,3.2078,4722.1,4720.5,1.90522]
[1759841373605,0.1235,4722.0,4721.7,0.38095]
[1759841373803,0.35669566,4721.8,4721.7,0.59495]
[1759841374304,0.35845667,4721.8,4721.7,0.59749894]
[1759841375810,0.35845667,4721.8,4721.7,0.21654894]
[1759841378708,0.78765667,4721.8,4721.7,0.21654894]
[1759841379303,0.35845667,4721.8,4721.7,0.21654894]
[1759841379510,0.02885667,4721.8,4721.7,0.21654894]
[1759841379811,0.34625667,4721.8,4721.7,0.21654894]
[1759841380012,0.77235667,4721.8,4721.7,0.21654894]
[1759841380209,0.34625667,4721.8,4721.7,0.21654894]
[1759841381913,0.02885667,4721.8,4721.7,0.21654894]
[1759841382110,0.34625667,4721.8,4721.7,0.21654894]
[1759841384916,0.55595667,4721.8,4721.7,0.21654894]
[1759841385117,0.77235667,4721.8,4721.7,0.21654894]
[1759841385317,0.34625667,4721.8,4721.7,0.21654894]
[1759841385709,3.2078,4722.1,4722.0,0.38092]
[1759841386114,0.1235,4722.5,4722.4,0.38089]
[1759841386115,0.4409,4722.5,4722.4,0.38089]
[1759841386314,0.1235,4723.0,4722.8,0.38086]
[1759841386315,0.3394,4722.9,4722.8,0.38086]
[1759841386612,3.2078,4724.4,4722.8,3.4218]
[1759841386806,0.3174,4723.9,4723.3,3.2078]
[1759841387007,0.3174,4722.9,4722.6,3.2078]
[1759841387212,0.3174,4722.9,4722.7,0.214]
[1759841387417,0.438,4723.0,4722.9,0.38085]
[1759841387613,0.438,4723.0,4722.6,3.2078]
[1759841387814,0.3174,4722.9,4722.7,0.214]
[1759841388014,0.3174,4722.9,4722.1,3.2078]
[1759841388213,0.3174,4722.3,4722.2,0.59491]
[1759841388420,0.1206,4723.0,4722.9,0.38085]
[1759841388713,0.1206,4723.5,4723.3,0.38082]
[1759841388909,0.1206,4723.5,4722.9,0.214]
[1759841388910,0.1206,4723.5,4723.4,0.214]
[1759841389115,0.1206,4723.5,4723.4,0.215]
[1759841389709,0.5467,4723.5,4723.2,3.58862]
[1759841389914,0.9275,4723.5,4723.3,0.59582]
[1759841390208,0.2097,4722.9,4722.8,0.38085]
[1759841390411,0.5271,4722.9,4722.8,0.59585]
[1759841390613,0.3174,4722.9,4722.8,0.59585]
[1759841391014,0.3174,4722.9,4722.8,0.38085]
[1759841391211,0.3174,4722.9,4722.8,0.59585]
[1759841392722,0.1206,4723.0,4722.8,5.59585]
[1759841392918,0.3174,4722.9,4722.8,0.38085]
[1759841393223,0.3174,4722.9,4722.8,74.42685]
[1759841393522,0.3174,4722.9,4722.8,41.39585]
[1759841393723,0.3174,4722.9,4722.8,41.18085]
[1759841393922,0.3174,4722.9,4722.8,41.39585]
[1759841394121,0.3174,4722.9,4722.8,40.8]
[1759841394422,0.3174,4722.9,4722.7,0.38086]
[1759841394617,0.7435,4722.1,4722.0,3.2078]
[1759841395124,0.7435,4722.1,4722.0,3.4228]
[1759841395324,0.1206,4722.0,4721.5,3.58876]
[1759841395514,0.3174,4721.9,4721.8,0.215]
[1759841397120,0.1206,4722.0,4721.9,0.38093]
[1759841397325,0.438,4722.0,4721.9,33.62493]
[1759841397826,0.438,4722.0,4721.9,74.42493]
[1759841398925,0.1206,4722.5,4722.4,0.38089]
[1759841399121,0.1206,4722.5,4722.4,3.80369]
[1759841399427,0.438,4722.5,4722.4,3.80369]
[1759841400123,0.1206,4722.5,4722.4,3.80369]
[1759841400720,0.1206,4723.0,4722.9,0.38085]
[1759841400917,0.1206,4723.0,4722.9,3.80365]
[1759841401224,0.438,4723.0,4722.9,3.80365]
[1759841401417,0.6477,4723.0,4722.9,3.80365]
[1759841401623,0.438,4723.0,4722.9,3.58865]
[1759841401827,0.8641,4723.0,4722.9,3.58865]
[1759841402020,0.8641,4723.0,4722.9,3.2078]
[1759841402220,0.8641,4723.0,4722.9,3.4228]
[1759841402428,5.8641,4723.0,4722.9,3.4228]
[1759841402620,0.8641,4723.0,4722.9,3.4228]
[1759841403332,0.8641,4723.0,4721.6,0.95239]
[1759841403333,0.7435,4722.4,4722.3,3.5887]
[1759841403522,0.1206,4722.0,4721.8,0.38094]
[1759841403825,0.3174,4721.9,4721.8,0.38094]
[1759841404525,0.3174,4721.9,4721.8,0.59594]
[1759841405520,0.5271,4721.9,4721.8,0.59594]
[1759841405716,0.3174,4721.9,4721.8,0.59594]
[1759841406124,0.1206,4722.5,4721.8,0.215]
[1759841406317,0.1216,4722.0,4721.9,0.214]
[1759841406523,0.4301,4722.0,4721.9,0.59493]
[1759841406731,0.6484,4722.0,4721.9,0.214]
[1759841407028,0.4301,4722.0,4721.9,0.214]
[1759841407824,0.4301,4722.0,4721.8,0.38094]
[1759841408025,0.4301,4722.0,4721.9,0.214]
[1759841410031,0.1206,4722.5,4722.4,0.38089]
[1759841410230,0.1206,4723.5,4722.8,0.38086]
[1759841410431,0.1206,4723.5,4722.9,0.215]
[1759841411334,0.5514,4723.0,4722.9,0.215]
[1759841412235,0.4291,4723.0,4722.9,0.215]
[1759841412436,0.1206,4723.0,4722.9,3.4228]
[1759841412635,0.4291,4723.0,4722.9,3.4228]
[1759841412934,0.8599,4723.0,4722.9,3.4228]
[1759841413631,0.8609,4722.5,4722.4,0.38089]
[1759841413829,0.8609,4722.5,4722.4,0.59489]
[1759841414231,0.6484,4722.5,4722.4,0.59489]
[1759841414628,0.8609,4722.5,4722.4,0.59489]
[1759841414831,0.3085,4722.4,4722.3,0.3809]
[1759841415134,0.3085,4722.4,4722.3,0.5949]
[1759841415334,0.7393,4722.4,4722.3,0.5949]
[1759841416332,0.7393,4721.9,4721.8,0.38094]
[1759841416533,0.7393,4721.9,4721.8,0.59494]
[1759841416837,0.5268,4721.9,4721.8,0.59494]
[1759841417040,0.3085,4721.9,4721.8,0.59494]